[Event "Late-Titled-Tuesday-Blitz-September-05-2023"]
[Site "Chess.com"]
[Date "2023.09.05"]
[Round "6"]
[White "BogdanDeac"]
[Black "Bauman_Guy"]
[Result "1/2-1/2"]
[WhiteElo "2997"]
[BlackElo "2895"]
[TimeControl "180+1"]
[EndTime "15:08:04 PDT"]
[Termination "Game drawn by repetition"]

1. b3 {[%clk 0:03:00.9]} 1... g6 {[%clk 0:03:00]} 2. Bb2 {[%clk 0:03:01.2]} 2...
Nf6 {[%clk 0:03:00.9]} 3. Nf3 {[%clk 0:03:01.8]} 3... Bg7 {[%clk 0:03:01.3]} 4.
g3 {[%clk 0:03:02.5]} 4... O-O {[%clk 0:03:02]} 5. Bg2 {[%clk 0:03:03.2]} 5...
d6 {[%clk 0:03:02.7]} 6. d4 {[%clk 0:03:03.5]} 6... Nbd7 {[%clk 0:03:03.2]} 7.
O-O {[%clk 0:03:04.1]} 7... Re8 {[%clk 0:03:03.9]} 8. c4 {[%clk 0:02:58.4]} 8...
c6 {[%clk 0:02:56.6]} 9. Re1 {[%clk 0:02:53.4]} 9... Qc7 {[%clk 0:02:56.3]} 10.
e4 {[%clk 0:02:48.4]} 10... e5 {[%clk 0:02:56.1]} 11. Nc3 {[%clk 0:02:48.6]}
11... Nf8 {[%clk 0:02:52.4]} 12. d5 {[%clk 0:02:39.4]} 12... Bg4 {[%clk
0:02:49.8]} 13. h3 {[%clk 0:02:37.1]} 13... Bxf3 {[%clk 0:02:49.9]} 14. Qxf3
{[%clk 0:02:36.7]} 14... c5 {[%clk 0:02:46.3]} 15. a3 {[%clk 0:02:36.3]} 15...
a6 {[%clk 0:02:43]} 16. h4 {[%clk 0:02:34.8]} 16... Reb8 {[%clk 0:02:36.2]} 17.
Bf1 {[%clk 0:02:21.4]} 17... Qd8 {[%clk 0:02:31.6]} 18. Bc1 {[%clk 0:02:05.9]}
18... h5 {[%clk 0:02:31.4]} 19. Bh3 {[%clk 0:01:58.7]} 19... N8h7 {[%clk
0:02:28.2]} 20. Bd2 {[%clk 0:01:55.9]} 20... Qf8 {[%clk 0:02:28.3]} 21. b4
{[%clk 0:01:53]} 21... b6 {[%clk 0:02:27.2]} 22. Reb1 {[%clk 0:01:48.2]} 22...
Bh6 {[%clk 0:02:26.1]} 23. Be3 {[%clk 0:01:37.2]} 23... Bxe3 {[%clk 0:02:24.2]}
24. Qxe3 {[%clk 0:01:38.1]} 24... Qg7 {[%clk 0:01:44.2]} 25. Kh1 {[%clk
0:01:20.8]} 25... Ng4 {[%clk 0:01:42.2]} 26. Qe2 {[%clk 0:01:17.9]} 26... f5
{[%clk 0:01:42]} 27. Rb2 {[%clk 0:01:10]} 27... Nhf6 {[%clk 0:01:29.8]} 28. Rab1
{[%clk 0:00:57.6]} 28... Rf8 {[%clk 0:01:29.8]} 29. bxc5 {[%clk 0:00:46.9]}
29... bxc5 {[%clk 0:01:30.7]} 30. f3 {[%clk 0:00:37.6]} 30... Nh6 {[%clk
0:01:28.1]} 31. Rb7 {[%clk 0:00:36.8]} 31... Rf7 {[%clk 0:01:20.4]} 32. Rxf7
{[%clk 0:00:36.8]} 32... Qxf7 {[%clk 0:01:16]} 33. Qe3 {[%clk 0:00:36.9]} 33...
Kh7 {[%clk 0:01:13.9]} 34. Kg2 {[%clk 0:00:29.7]} 34... fxe4 {[%clk 0:00:51.2]}
35. Nxe4 {[%clk 0:00:09.8]} 35... Nxe4 {[%clk 0:00:50.8]} 36. Be6 {[%clk
0:00:05]} 36... Qa7 {[%clk 0:00:33.7]} 37. fxe4 {[%clk 0:00:03.8]} 37... Rf8
{[%clk 0:00:28.8]} 38. Qg5 {[%clk 0:00:03.5]} 38... Qc7 {[%clk 0:00:23.2]} 39.
Rf1 {[%clk 0:00:02.9]} 39... Rxf1 {[%clk 0:00:22]} 40. Kxf1 {[%clk 0:00:03.8]}
40... Kg7 {[%clk 0:00:21.3]} 41. Kg2 {[%clk 0:00:04.2]} 41... Nf7 {[%clk
0:00:19.7]} 42. Bxf7 {[%clk 0:00:03.9]} 42... Qxf7 {[%clk 0:00:12.5]} 43. Qd8
{[%clk 0:00:04.2]} 43... Qf6 {[%clk 0:00:12.2]} 44. Qd7+ {[%clk 0:00:04.1]}
44... Kh6 {[%clk 0:00:12.4]} 45. Qc8 {[%clk 0:00:04.1]} 45... g5 {[%clk
0:00:12.3]} 46. hxg5+ {[%clk 0:00:03.4]} 46... Kxg5 {[%clk 0:00:07.8]} 47. Qg8+
{[%clk 0:00:03.2]} 47... Kh6 {[%clk 0:00:07.9]} 48. Qe8 {[%clk 0:00:03.4]} 48...
Kg5 {[%clk 0:00:02.1]} 49. Qd7 {[%clk 0:00:02.8]} 49... Kh6 {[%clk 0:00:02.5]}
50. Qh3 {[%clk 0:00:02.5]} 50... Qg6 {[%clk 0:00:02.8]} 51. Qh4 {[%clk
0:00:02.3]} 51... Qg5 {[%clk 0:00:02.3]} 52. Kf3 {[%clk 0:00:01]} 52... Qxh4
{[%clk 0:00:02.2]} 53. gxh4 {[%clk 0:00:01.4]} 53... Kg6 {[%clk 0:00:03.1]} 54.
Ke3 {[%clk 0:00:02]} 54... Kf7 {[%clk 0:00:04]} 55. Kd3 {[%clk 0:00:02.7]} 55...
Ke7 {[%clk 0:00:04.9]} 56. Kc3 {[%clk 0:00:03.4]} 56... Kd7 {[%clk 0:00:05.8]}
57. Kb3 {[%clk 0:00:04]} 57... Kc7 {[%clk 0:00:06.7]} 58. Ka4 {[%clk 0:00:04.6]}
58... Kb6 {[%clk 0:00:07.4]} 59. Kb3 {[%clk 0:00:05.1]} 59... Kb7 {[%clk
0:00:08]} 60. a4 {[%clk 0:00:05.4]} 60... Kb6 {[%clk 0:00:08.9]} 61. Ka3 {[%clk
0:00:05.9]} 61... Ka5 {[%clk 0:00:09.2]} 62. Kb3 {[%clk 0:00:06.8]} 62... Kb6
{[%clk 0:00:10.1]} 63. Ka3 {[%clk 0:00:07.2]} 63... Ka5 {[%clk 0:00:11]} 64. Kb3
{[%clk 0:00:07.7]} 64... Kb6 {[%clk 0:00:11.9]} 1/2-1/2

[Event "Late-Titled-Tuesday-Blitz-September-05-2023"]
[Site "Chess.com"]
[Date "2023.09.05"]
[Round "6"]
[White "melissa_guez"]
[Black "MajorCoast"]
[Result "1/2-1/2"]
[WhiteElo "2099"]
[BlackElo "2283"]
[TimeControl "180+1"]
[EndTime "15:08:06 PDT"]
[Termination "Game drawn by stalemate"]

1. e4 {[%clk 0:03:00.9]} 1... c5 {[%clk 0:02:59.4]} 2. Nf3 {[%clk 0:03:00.3]}
2... e6 {[%clk 0:02:59.6]} 3. d4 {[%clk 0:03:00.5]} 3... cxd4 {[%clk 0:03:00.5]}
4. Nxd4 {[%clk 0:03:00.9]} 4... Nf6 {[%clk 0:03:01.1]} 5. Nc3 {[%clk 0:03:00.4]}
5... Qb6 {[%clk 0:03:00.7]} 6. Nb3 {[%clk 0:02:52.3]} 6... Bb4 {[%clk
0:02:59.3]} 7. Bd3 {[%clk 0:02:37.2]} 7... d5 {[%clk 0:02:55]} 8. exd5 {[%clk
0:02:36.5]} 8... Nxd5 {[%clk 0:02:54.5]} 9. Bd2 {[%clk 0:02:27.5]} 9... Nxc3
{[%clk 0:02:38.7]} 10. bxc3 {[%clk 0:02:27.3]} 10... Be7 {[%clk 0:02:36.1]} 11.
O-O {[%clk 0:02:25.5]} 11... O-O {[%clk 0:02:35.2]} 12. a4 {[%clk 0:02:23]}
12... Nd7 {[%clk 0:02:30.8]} 13. a5 {[%clk 0:02:22.5]} 13... Qc7 {[%clk
0:02:30.5]} 14. f4 {[%clk 0:02:01.5]} 14... Nf6 {[%clk 0:02:23.4]} 15. f5 {[%clk
0:01:58.4]} 15... exf5 {[%clk 0:02:18.2]} 16. Bxf5 {[%clk 0:01:53.3]} 16... Bxf5
{[%clk 0:02:19.1]} 17. Rxf5 {[%clk 0:01:53.3]} 17... Rad8 {[%clk 0:02:18.5]} 18.
Qf3 {[%clk 0:01:41.6]} 18... Rd7 {[%clk 0:01:52.5]} 19. Rf1 {[%clk 0:01:37.7]}
19... Rfd8 {[%clk 0:01:50.3]} 20. Bf4 {[%clk 0:01:32.7]} 20... Qc6 {[%clk
0:01:32.7]} 21. Qxc6 {[%clk 0:01:20.7]} 21... bxc6 {[%clk 0:01:33.6]} 22. Be5
{[%clk 0:01:17.7]} 22... Rd1 {[%clk 0:01:25.3]} 23. Nd4 {[%clk 0:01:14.6]} 23...
Rxf1+ {[%clk 0:01:23]} 24. Kxf1 {[%clk 0:01:15.5]} 24... Ng4 {[%clk 0:01:18.6]}
25. Bf4 {[%clk 0:00:58.9]} 25... Bd6 {[%clk 0:00:58]} 26. Nxc6 {[%clk
0:00:56.5]} 26... Re8 {[%clk 0:00:38.8]} 27. h3 {[%clk 0:00:37.9]} 27... Nh6
{[%clk 0:00:26.2]} 28. Bxh6 {[%clk 0:00:29.3]} 28... gxh6 {[%clk 0:00:23.6]} 29.
Rf6 {[%clk 0:00:27.5]} 29... Be5 {[%clk 0:00:20.1]} 30. Rxh6 {[%clk 0:00:18.8]}
30... Bxc3 {[%clk 0:00:18.6]} 31. Rh5 {[%clk 0:00:16.2]} 31... a6 {[%clk
0:00:14.3]} 32. Rd5 {[%clk 0:00:12.9]} 32... Re1+ {[%clk 0:00:13.3]} 33. Kf2
{[%clk 0:00:12.7]} 33... Ra1 {[%clk 0:00:14.2]} 34. Ne7+ {[%clk 0:00:10.7]}
34... Kg7 {[%clk 0:00:13.2]} 35. Nc6 {[%clk 0:00:10.4]} 35... Ra2 {[%clk
0:00:12.5]} 36. Nb8 {[%clk 0:00:08]} 36... Rxc2+ {[%clk 0:00:12.1]} 37. Kf3
{[%clk 0:00:08.5]} 37... Ra2 {[%clk 0:00:10.2]} 38. Nxa6 {[%clk 0:00:08.2]}
38... Rxa5 {[%clk 0:00:09]} 39. Rxa5 {[%clk 0:00:07.6]} 39... Bxa5 {[%clk
0:00:09.9]} 40. Nc5 {[%clk 0:00:07.6]} 40... Bd8 {[%clk 0:00:08.6]} 41. Ne4
{[%clk 0:00:06.1]} 41... h6 {[%clk 0:00:07.1]} 42. g4 {[%clk 0:00:05.8]} 42...
Bc7 {[%clk 0:00:06.8]} 43. Nc3 {[%clk 0:00:04.5]} 43... Ba5 {[%clk 0:00:06.7]}
44. Nd5 {[%clk 0:00:04.8]} 44... Be1 {[%clk 0:00:05.3]} 45. Ne3 {[%clk
0:00:04.8]} 45... Bh4 {[%clk 0:00:05.2]} 46. Nf5+ {[%clk 0:00:05.1]} 46... Kf6
{[%clk 0:00:03.3]} 47. Nxh4 {[%clk 0:00:06]} 47... Kg5 {[%clk 0:00:03.5]} 48.
Ng2 {[%clk 0:00:06.3]} 48... f5 {[%clk 0:00:03.4]} 49. h4+ {[%clk 0:00:06.8]}
49... Kf6 {[%clk 0:00:02.6]} 50. gxf5 {[%clk 0:00:05.4]} 50... Kxf5 {[%clk
0:00:03.5]} 51. Ne3+ {[%clk 0:00:04.9]} 51... Kg6 {[%clk 0:00:03.5]} 52. Ng4
{[%clk 0:00:03.6]} 52... Kh5 {[%clk 0:00:03.7]} 53. Kg3 {[%clk 0:00:03.2]} 53...
Kg6 {[%clk 0:00:02.8]} 54. Ne5+ {[%clk 0:00:03.5]} 54... Kh5 {[%clk 0:00:03]}
55. Nf3 {[%clk 0:00:04.4]} 55... Kg6 {[%clk 0:00:03.3]} 56. Kg4 {[%clk
0:00:04.5]} 56... Kg7 {[%clk 0:00:02.9]} 57. Kh5 {[%clk 0:00:04.3]} 57... Kh7
{[%clk 0:00:03.3]} 58. Ne5 {[%clk 0:00:04.5]} 58... Kg7 {[%clk 0:00:03.7]} 59.
Ng4 {[%clk 0:00:04.9]} 59... Kh7 {[%clk 0:00:04.3]} 60. Nxh6 {[%clk 0:00:05.7]}
60... Kg7 {[%clk 0:00:04.9]} 61. Ng4 {[%clk 0:00:06.3]} 61... Kh7 {[%clk
0:00:05.8]} 62. Kg5 {[%clk 0:00:06.8]} 62... Kg7 {[%clk 0:00:06.6]} 63. h5
{[%clk 0:00:07.3]} 63... Kh7 {[%clk 0:00:07.4]} 64. Nf6+ {[%clk 0:00:07.8]}
64... Kh8 {[%clk 0:00:08.1]} 65. h6 {[%clk 0:00:08.3]} 1/2-1/2

[Event "Late-Titled-Tuesday-Blitz-September-05-2023"]
[Site "Chess.com"]
[Date "2023.09.05"]
[Round "6"]
[White "realburq"]
[Black "KrokerGuy"]
[Result "0-1"]
[WhiteElo "2372"]
[BlackElo "2496"]
[TimeControl "180+1"]
[EndTime "15:08:07 PDT"]
[Termination "KrokerGuy won by checkmate"]

1. e4 {[%clk 0:03:00.9]} 1... e5 {[%clk 0:02:59.4]} 2. Nf3 {[%clk 0:02:59.8]}
2... Nc6 {[%clk 0:03:00]} 3. Nc3 {[%clk 0:02:59.1]} 3... Nf6 {[%clk 0:03:00]} 4.
a3 {[%clk 0:02:57.8]} 4... d5 {[%clk 0:02:57.9]} 5. exd5 {[%clk 0:02:55.6]} 5...
Nxd5 {[%clk 0:02:58.8]} 6. Bb5 {[%clk 0:02:55.1]} 6... Nxc3 {[%clk 0:02:51.8]}
7. bxc3 {[%clk 0:02:56]} 7... Bd6 {[%clk 0:02:51.2]} 8. O-O {[%clk 0:02:54.3]}
8... O-O {[%clk 0:02:48.3]} 9. d4 {[%clk 0:02:50]} 9... exd4 {[%clk 0:02:47.7]}
10. cxd4 {[%clk 0:02:50.7]} 10... Bg4 {[%clk 0:02:46.9]} 11. Bxc6 {[%clk
0:02:23.3]} 11... bxc6 {[%clk 0:02:43.4]} 12. h3 {[%clk 0:02:23.5]} 12... Bh5
{[%clk 0:02:39.6]} 13. Qd3 {[%clk 0:02:23.7]} 13... c5 {[%clk 0:02:28.6]} 14.
Bb2 {[%clk 0:02:16.7]} 14... Rb8 {[%clk 0:02:16.2]} 15. Bc3 {[%clk 0:02:11.8]}
15... c4 {[%clk 0:02:13.7]} 16. Qf5 {[%clk 0:01:42.1]} 16... g6 {[%clk
0:02:13.4]} 17. Qg5 {[%clk 0:01:25.9]} 17... Bxf3 {[%clk 0:01:28]} 18. Qxd8
{[%clk 0:01:25.1]} 18... Rfxd8 {[%clk 0:01:28.7]} 19. gxf3 {[%clk 0:01:25.5]}
19... Re8 {[%clk 0:01:17]} 20. Rfe1 {[%clk 0:01:15.9]} 20... f5 {[%clk
0:01:14.8]} 21. d5 {[%clk 0:01:07.9]} 21... Rxe1+ {[%clk 0:01:01.8]} 22. Rxe1
{[%clk 0:01:07.2]} 22... Bxa3 {[%clk 0:01:02]} 23. Ra1 {[%clk 0:01:07.2]} 23...
Bc5 {[%clk 0:01:01.4]} 24. Kg2 {[%clk 0:00:54.4]} 24... Kf7 {[%clk 0:00:51.3]}
25. Ra4 {[%clk 0:00:53.5]} 25... Rd8 {[%clk 0:00:51.1]} 26. Rxc4 {[%clk
0:00:48.5]} 26... Rxd5 {[%clk 0:00:50.9]} 27. Ra4 {[%clk 0:00:44.1]} 27... Bb6
{[%clk 0:00:51.2]} 28. Bb2 {[%clk 0:00:37.1]} 28... Rd2 {[%clk 0:00:50.5]} 29.
Rc4 {[%clk 0:00:33.2]} 29... Rxf2+ {[%clk 0:00:49.6]} 30. Kg3 {[%clk 0:00:33.7]}
30... Rd2 {[%clk 0:00:45.4]} 31. Kf4 {[%clk 0:00:32.2]} 31... h6 {[%clk
0:00:29]} 32. h4 {[%clk 0:00:32]} 32... Rd5 {[%clk 0:00:21.4]} 33. Rc6 {[%clk
0:00:26]} 33... Rd6 {[%clk 0:00:18.4]} 34. Rc4 {[%clk 0:00:24.5]} 34... Ke6
{[%clk 0:00:12.9]} 35. Ra4 {[%clk 0:00:20.3]} 35... a5 {[%clk 0:00:12.3]} 36.
Rc4 {[%clk 0:00:20.6]} 36... Kd5 {[%clk 0:00:07.4]} 37. Ra4 {[%clk 0:00:17.8]}
37... Kc5 {[%clk 0:00:06.8]} 38. Bg7 {[%clk 0:00:17]} 38... Kb5 {[%clk
0:00:06.9]} 39. Ra2 {[%clk 0:00:15.5]} 39... Re6 {[%clk 0:00:04.7]} 40. Bxh6
{[%clk 0:00:15.6]} 40... Be3+ {[%clk 0:00:05]} 41. Kg3 {[%clk 0:00:14]} 41...
Bxh6 {[%clk 0:00:05.9]} 42. Rb2+ {[%clk 0:00:14.5]} 42... Kc4 {[%clk 0:00:06]}
43. Rb7 {[%clk 0:00:14.1]} 43... Rc6 {[%clk 0:00:03.9]} 44. Ra7 {[%clk
0:00:14.4]} 44... Kb4 {[%clk 0:00:04.4]} 45. h5 {[%clk 0:00:15]} 45... gxh5
{[%clk 0:00:04.3]} 46. Kh4 {[%clk 0:00:15.6]} 46... Rxc2 {[%clk 0:00:04.5]} 47.
Kxh5 {[%clk 0:00:16]} 47... Be3 {[%clk 0:00:05.1]} 48. Kg6 {[%clk 0:00:16.4]}
48... f4 {[%clk 0:00:05.8]} 49. Rb7+ {[%clk 0:00:16.3]} 49... Ka4 {[%clk
0:00:05.2]} 50. Kf5 {[%clk 0:00:17.2]} 50... c5 {[%clk 0:00:04.1]} 51. Ke4
{[%clk 0:00:18.1]} 51... c4 {[%clk 0:00:04.7]} 52. Rb1 {[%clk 0:00:16]} 52...
Ka3 {[%clk 0:00:03.8]} 53. Kd5 {[%clk 0:00:15.8]} 53... Ka2 {[%clk 0:00:04]} 54.
Rb5 {[%clk 0:00:15.2]} 54... a4 {[%clk 0:00:04.6]} 55. Ke4 {[%clk 0:00:14.3]}
55... a3 {[%clk 0:00:04.9]} 56. Rb7 {[%clk 0:00:14.7]} 56... Ka1 {[%clk
0:00:04.9]} 57. Rb4 {[%clk 0:00:15.2]} 57... a2 {[%clk 0:00:05.3]} 58. Rb8
{[%clk 0:00:14.8]} 58... Rb2 {[%clk 0:00:04.7]} 59. Rh8 {[%clk 0:00:15.7]} 59...
Kb1 {[%clk 0:00:04.5]} 60. Rh1+ {[%clk 0:00:15.3]} 60... Bc1 {[%clk 0:00:04.1]}
61. Rh2 {[%clk 0:00:16.2]} 61... Rxh2 {[%clk 0:00:04]} 62. Kd4 {[%clk
0:00:16.2]} 62... a1=Q+ {[%clk 0:00:04.1]} 63. Kc5 {[%clk 0:00:17.1]} 63... Qe5+
{[%clk 0:00:04]} 64. Kb4 {[%clk 0:00:18]} 64... Rb2+ {[%clk 0:00:04.1]} 65. Ka4
{[%clk 0:00:18.8]} 65... Qb5+ {[%clk 0:00:04]} 66. Ka3 {[%clk 0:00:19.7]} 66...
Qb3# {[%clk 0:00:04.7]} 0-1

[Event "Late-Titled-Tuesday-Blitz-September-05-2023"]
[Site "Chess.com"]
[Date "2023.09.05"]
[Round "6"]
[White "Sibelephant"]
[Black "ameetghasi100"]
[Result "1-0"]
[WhiteElo "3100"]
[BlackElo "2683"]
[TimeControl "180+1"]
[EndTime "15:08:10 PDT"]
[Termination "Sibelephant won by checkmate"]

1. c4 {[%clk 0:03:00.2]} 1... Nf6 {[%clk 0:03:00.3]} 2. Nc3 {[%clk 0:03:00]}
2... g6 {[%clk 0:03:01.2]} 3. g3 {[%clk 0:02:59.7]} 3... Bg7 {[%clk 0:03:02.1]}
4. Bg2 {[%clk 0:03:00.3]} 4... O-O {[%clk 0:03:03]} 5. d4 {[%clk 0:02:57.7]}
5... d6 {[%clk 0:03:02.8]} 6. h3 {[%clk 0:02:56.7]} 6... Nc6 {[%clk 0:03:02]} 7.
e3 {[%clk 0:02:44.2]} 7... e5 {[%clk 0:02:51.6]} 8. Nge2 {[%clk 0:02:44.2]} 8...
exd4 {[%clk 0:02:45.5]} 9. exd4 {[%clk 0:02:43.8]} 9... Re8 {[%clk 0:02:41.5]}
10. O-O {[%clk 0:02:43.2]} 10... Ne7 {[%clk 0:02:10]} 11. d5 {[%clk 0:02:37.9]}
11... Nf5 {[%clk 0:02:07.7]} 12. Re1 {[%clk 0:02:24.5]} 12... Bd7 {[%clk
0:01:48.6]} 13. b3 {[%clk 0:02:13.2]} 13... h5 {[%clk 0:01:21.4]} 14. Bg5 {[%clk
0:02:08.1]} 14... Qc8 {[%clk 0:01:18.2]} 15. Qd2 {[%clk 0:02:04]} 15... Nh7
{[%clk 0:01:10.6]} 16. Bf4 {[%clk 0:02:03.8]} 16... a6 {[%clk 0:01:10.8]} 17.
Rac1 {[%clk 0:01:58.4]} 17... Qd8 {[%clk 0:01:11.1]} 18. Ne4 {[%clk 0:01:51.7]}
18... Nf6 {[%clk 0:01:09.5]} 19. N2c3 {[%clk 0:01:45.6]} 19... Nh7 {[%clk
0:01:05.4]} 20. c5 {[%clk 0:01:41.9]} 20... Be5 {[%clk 0:00:57.2]} 21. cxd6
{[%clk 0:01:12.8]} 21... cxd6 {[%clk 0:00:57]} 22. Bxe5 {[%clk 0:01:06]} 22...
Rxe5 {[%clk 0:00:57.9]} 23. Nd1 {[%clk 0:00:42.9]} 23... Rc8 {[%clk 0:00:43]}
24. Nb2 {[%clk 0:00:37.5]} 24... Rxc1 {[%clk 0:00:38.4]} 25. Qxc1 {[%clk
0:00:37.7]} 25... Nf6 {[%clk 0:00:29.8]} 26. Nc4 {[%clk 0:00:37.6]} 26... Re8
{[%clk 0:00:14.4]} 27. Ncxd6 {[%clk 0:00:32.7]} 27... Nxd6 {[%clk 0:00:13.9]}
28. Nxd6 {[%clk 0:00:33.1]} 28... Rxe1+ {[%clk 0:00:14.1]} 29. Qxe1 {[%clk
0:00:33.8]} 29... Bxh3 {[%clk 0:00:14.2]} 30. Nxb7 {[%clk 0:00:28.9]} 30... Qc8
{[%clk 0:00:08.4]} 31. Nd6 {[%clk 0:00:26.7]} 31... Qd7 {[%clk 0:00:08.7]} 32.
Qe5 {[%clk 0:00:08.4]} 32... Bxg2 {[%clk 0:00:08.8]} 33. Kxg2 {[%clk 0:00:09.1]}
33... Ng4 {[%clk 0:00:04.4]} 34. Qe8+ {[%clk 0:00:09.2]} 34... Qxe8 {[%clk
0:00:04.5]} 35. Nxe8 {[%clk 0:00:10.1]} 35... Kf8 {[%clk 0:00:05.2]} 36. Nc7
{[%clk 0:00:09.3]} 36... a5 {[%clk 0:00:05.5]} 37. d6 {[%clk 0:00:06]} 37... Nf6
{[%clk 0:00:03.9]} 38. Kf3 {[%clk 0:00:05.9]} 38... g5 {[%clk 0:00:02.8]} 39. a3
{[%clk 0:00:06.4]} 39... Nd7 {[%clk 0:00:02.8]} 40. b4 {[%clk 0:00:05]} 40...
axb4 {[%clk 0:00:03.4]} 41. axb4 {[%clk 0:00:05.9]} 41... Nb6 {[%clk 0:00:04.3]}
42. Ke4 {[%clk 0:00:02.6]} 42... f6 {[%clk 0:00:04.2]} 43. b5 {[%clk 0:00:02.1]}
43... Kf7 {[%clk 0:00:04.4]} 44. Nd5 {[%clk 0:00:02.7]} 44... Nd7 {[%clk
0:00:03.4]} 45. b6 {[%clk 0:00:02.8]} 45... Nc5+ {[%clk 0:00:03.3]} 46. Kd4
{[%clk 0:00:02.9]} 46... Nb7 {[%clk 0:00:03.8]} 47. d7 {[%clk 0:00:03.1]} 47...
Nd8 {[%clk 0:00:03]} 48. Ke4 {[%clk 0:00:03]} 48... Ke6 {[%clk 0:00:03.4]} 49.
f3 {[%clk 0:00:03.4]} 49... f5+ {[%clk 0:00:03.5]} 50. Kd4 {[%clk 0:00:03.6]}
50... Kxd7 {[%clk 0:00:04.4]} 51. Ke5 {[%clk 0:00:03.6]} 51... h4 {[%clk
0:00:05]} 52. gxh4 {[%clk 0:00:03.2]} 52... gxh4 {[%clk 0:00:05.9]} 53. Nf4
{[%clk 0:00:03.1]} 53... Ne6 {[%clk 0:00:05.6]} 54. Nxe6 {[%clk 0:00:02.3]}
54... h3 {[%clk 0:00:05.9]} 55. b7 {[%clk 0:00:03.2]} 55... h2 {[%clk 0:00:06]}
56. b8=Q {[%clk 0:00:03.8]} 56... h1=Q {[%clk 0:00:06.9]} 57. Qc7+ {[%clk
0:00:04.1]} 57... Ke8 {[%clk 0:00:07.4]} 58. Qd8+ {[%clk 0:00:04.7]} 58... Kf7
{[%clk 0:00:07.8]} 59. Qf8+ {[%clk 0:00:05.6]} 59... Kg6 {[%clk 0:00:08.1]} 60.
Qg7+ {[%clk 0:00:06.5]} 60... Kh5 {[%clk 0:00:07.7]} 61. Qg5# {[%clk 0:00:07.4]}
1-0

[Event "Late-Titled-Tuesday-Blitz-September-05-2023"]
[Site "Chess.com"]
[Date "2023.09.05"]
[Round "6"]
[White "TC2304"]
[Black "Valio_M1948"]
[Result "0-1"]
[WhiteElo "2353"]
[BlackElo "2520"]
[TimeControl "180+1"]
[EndTime "15:08:14 PDT"]
[Termination "Valio_M1948 won by checkmate"]

1. c4 {[%clk 0:03:00.9]} 1... c5 {[%clk 0:02:59.7]} 2. Nc3 {[%clk 0:03:01.3]}
2... Nc6 {[%clk 0:02:59.4]} 3. g3 {[%clk 0:03:01.5]} 3... g6 {[%clk 0:02:59.8]}
4. Bg2 {[%clk 0:03:02.1]} 4... Bg7 {[%clk 0:03:00.5]} 5. e4 {[%clk 0:03:02.7]}
5... e6 {[%clk 0:02:59.4]} 6. Nge2 {[%clk 0:03:03.4]} 6... Nge7 {[%clk 0:03:00]}
7. O-O {[%clk 0:03:03.8]} 7... O-O {[%clk 0:02:59.9]} 8. b3 {[%clk 0:02:57.8]}
8... d6 {[%clk 0:02:57.6]} 9. Bb2 {[%clk 0:02:56.9]} 9... Qd7 {[%clk 0:02:57.7]}
10. h3 {[%clk 0:02:47.4]} 10... b6 {[%clk 0:02:56.8]} 11. a4 {[%clk 0:02:39.8]}
11... Bb7 {[%clk 0:02:56.4]} 12. Kh2 {[%clk 0:02:33.1]} 12... f5 {[%clk
0:02:48.7]} 13. f4 {[%clk 0:02:31.3]} 13... a6 {[%clk 0:02:27.1]} 14. d3 {[%clk
0:02:21.9]} 14... Rad8 {[%clk 0:02:06.3]} 15. Qd2 {[%clk 0:02:21.2]} 15... Nb4
{[%clk 0:01:54.5]} 16. Rae1 {[%clk 0:02:13.1]} 16... d5 {[%clk 0:01:50.2]} 17.
cxd5 {[%clk 0:02:03.4]} 17... exd5 {[%clk 0:01:50.8]} 18. e5 {[%clk 0:02:02.7]}
18... d4 {[%clk 0:01:44.9]} 19. Nd1 {[%clk 0:01:51.6]} 19... Bxg2 {[%clk
0:01:42.1]} 20. Kxg2 {[%clk 0:01:52.5]} 20... Qd5+ {[%clk 0:01:42.4]} 21. Rf3
{[%clk 0:01:50]} 21... Qxb3 {[%clk 0:01:41.5]} 22. a5 {[%clk 0:01:44.1]} 22...
bxa5 {[%clk 0:01:39.7]} 23. Nc1 {[%clk 0:01:39.2]} 23... Qd5 {[%clk 0:01:35.7]}
24. Ba3 {[%clk 0:01:36]} 24... Rb8 {[%clk 0:01:31.1]} 25. Nb2 {[%clk 0:01:36]}
25... Nec6 {[%clk 0:01:10.2]} 26. Nc4 {[%clk 0:01:35.8]} 26... Rfe8 {[%clk
0:00:56.7]} 27. Re2 {[%clk 0:01:33.9]} 27... Bf8 {[%clk 0:00:49.8]} 28. g4
{[%clk 0:01:30.3]} 28... fxg4 {[%clk 0:00:49.2]} 29. hxg4 {[%clk 0:01:31.2]}
29... Bh6 {[%clk 0:00:47.4]} 30. g5 {[%clk 0:01:23.7]} 30... Bf8 {[%clk
0:00:43.1]} 31. Kg3 {[%clk 0:01:22.4]} 31... Ne7 {[%clk 0:00:39.9]} 32. Rh2
{[%clk 0:01:20.9]} 32... Nf5+ {[%clk 0:00:39.9]} 33. Kf2 {[%clk 0:01:21.5]}
33... a4 {[%clk 0:00:25]} 34. Rfh3 {[%clk 0:01:15.9]} 34... Rb7 {[%clk
0:00:25.6]} 35. Qd1 {[%clk 0:01:16.5]} 35... Rf7 {[%clk 0:00:24.9]} 36. Rf3
{[%clk 0:01:06.1]} 36... Qc6 {[%clk 0:00:23.9]} 37. Nb2 {[%clk 0:00:49.2]} 37...
Nd5 {[%clk 0:00:23.5]} 38. Qxa4 {[%clk 0:00:45.5]} 38... Rc8 {[%clk 0:00:22.7]}
39. Qxc6 {[%clk 0:00:44.7]} 39... Rxc6 {[%clk 0:00:23.6]} 40. Nc4 {[%clk
0:00:45.6]} 40... Nde3 {[%clk 0:00:22.9]} 41. Nxe3 {[%clk 0:00:43.4]} 41... Nxe3
{[%clk 0:00:23.8]} 42. Ke1 {[%clk 0:00:44]} 42... c4 {[%clk 0:00:20.6]} 43. Bxf8
{[%clk 0:00:42.3]} 43... Rxf8 {[%clk 0:00:21.5]} 44. dxc4 {[%clk 0:00:41.5]}
44... Rxc4 {[%clk 0:00:22.3]} 45. Ne2 {[%clk 0:00:41.7]} 45... Nf5 {[%clk
0:00:19.6]} 46. Rd3 {[%clk 0:00:40.6]} 46... Rb8 {[%clk 0:00:17.4]} 47. Rhh3
{[%clk 0:00:38.9]} 47... Rb1+ {[%clk 0:00:17]} 48. Kf2 {[%clk 0:00:39.5]} 48...
Rb2 {[%clk 0:00:17.5]} 49. Kf3 {[%clk 0:00:29.1]} 49... a5 {[%clk 0:00:11.2]}
50. Ng3 {[%clk 0:00:26.6]} 50... Ne3 {[%clk 0:00:07.6]} 51. Ke4 {[%clk
0:00:23.5]} 51... a4 {[%clk 0:00:06]} 52. Rxd4 {[%clk 0:00:23]} 52... Rxd4+
{[%clk 0:00:06]} 53. Kxd4 {[%clk 0:00:23.6]} 53... Nc2+ {[%clk 0:00:06.1]} 54.
Kc3 {[%clk 0:00:23.6]} 54... a3 {[%clk 0:00:06.6]} 55. Ne4 {[%clk 0:00:20.5]}
55... a2 {[%clk 0:00:06.9]} 56. Kxb2 {[%clk 0:00:08.9]} 56... a1=Q+ {[%clk
0:00:07.3]} 57. Kxc2 {[%clk 0:00:09.7]} 57... Qa4+ {[%clk 0:00:07.2]} 58. Kd3
{[%clk 0:00:09.7]} 58... Qd1+ {[%clk 0:00:07]} 59. Nd2 {[%clk 0:00:08.6]} 59...
Qg4 {[%clk 0:00:05.7]} 60. Rf3 {[%clk 0:00:08.9]} 60... Kf7 {[%clk 0:00:05.6]}
61. Ke4 {[%clk 0:00:09.4]} 61... Ke6 {[%clk 0:00:05.7]} 62. Rd3 {[%clk 0:00:09]}
62... Qg2+ {[%clk 0:00:05.9]} 63. Nf3 {[%clk 0:00:09.6]} 63... Qe2+ {[%clk
0:00:06.2]} 64. Re3 {[%clk 0:00:10.4]} 64... Qc2+ {[%clk 0:00:05.5]} 65. Rd3
{[%clk 0:00:11.1]} 65... Qc4+ {[%clk 0:00:04.2]} 66. Rd4 {[%clk 0:00:11.3]}
66... Qe2# {[%clk 0:00:03.7]} 0-1